[Event "Early-Titled-Tuesday-Blitz-January-23-2024"]
[Site "Chess.com"]
[Date "2024.01.23"]
[Round "4"]
[White "Lion-Al-Messi"]
[Black "medalja"]
[Result "1-0"]
[WhiteElo "2593"]
[BlackElo "2383"]
[TimeControl "180+1"]
[EndTime "8:39:05 PST"]
[Termination "Lion-Al-Messi won on time"]

1. e4 {[%clk 0:03:00.9]} 1... e6 {[%clk 0:03:00.2]} 2. d4 {[%clk 0:03:00.7]}
2... d5 {[%clk 0:03:00.9]} 3. Nd2 {[%clk 0:03:01.2]} 3... Nf6 {[%clk 0:02:58.4]}
4. e5 {[%clk 0:03:01.2]} 4... Nfd7 {[%clk 0:02:59.1]} 5. Bd3 {[%clk 0:03:01.8]}
5... c5 {[%clk 0:02:59.2]} 6. c3 {[%clk 0:03:02.1]} 6... Nc6 {[%clk 0:02:59.3]}
7. Ne2 {[%clk 0:03:02.2]} 7... f6 {[%clk 0:02:59.7]} 8. exf6 {[%clk 0:03:02]}
8... Nxf6 {[%clk 0:02:59.4]} 9. Nf3 {[%clk 0:03:02.2]} 9... Bd6 {[%clk
0:02:59.4]} 10. O-O {[%clk 0:03:02.3]} 10... O-O {[%clk 0:02:59.4]} 11. Bg5
{[%clk 0:03:02.5]} 11... h6 {[%clk 0:02:47.7]} 12. Bh4 {[%clk 0:03:01.5]} 12...
Qb6 {[%clk 0:02:47.3]} 13. Qd2 {[%clk 0:02:59.2]} 13... e5 {[%clk 0:02:40.7]}
14. dxe5 {[%clk 0:02:54.2]} 14... Nxe5 {[%clk 0:02:40.8]} 15. Nxe5 {[%clk
0:02:54.1]} 15... Bxe5 {[%clk 0:02:41.7]} 16. Ng3 {[%clk 0:02:50.3]} 16... Qc6
{[%clk 0:02:22]} 17. Rae1 {[%clk 0:02:49.3]} 17... Bc7 {[%clk 0:02:10.2]} 18.
Bb1 {[%clk 0:02:46.7]} 18... Bd7 {[%clk 0:01:47.6]} 19. Qc2 {[%clk 0:02:46.8]}
19... Bxg3 {[%clk 0:01:35.8]} 20. hxg3 {[%clk 0:02:46.5]} 20... Rae8 {[%clk
0:01:19.5]} 21. Bxf6 {[%clk 0:02:39.1]} 21... Qxf6 {[%clk 0:01:18.3]} 22. Qh7+
{[%clk 0:02:39.1]} 22... Kf7 {[%clk 0:01:18.6]} 23. Re3 {[%clk 0:02:36.7]} 23...
Rh8 {[%clk 0:01:11.3]} 24. Qd3 {[%clk 0:02:36.7]} 24... Kg8 {[%clk 0:00:32.9]}
25. Qxd5+ {[%clk 0:02:35.6]} 25... Be6 {[%clk 0:00:32.5]} 26. Qxc5 {[%clk
0:02:32]} 26... Bf7 {[%clk 0:00:28.1]} 27. Rxe8+ {[%clk 0:02:31.1]} 27... Bxe8
{[%clk 0:00:29]} 28. Re1 {[%clk 0:02:31.9]} 28... Bc6 {[%clk 0:00:24.4]} 29.
Qc4+ {[%clk 0:02:30.1]} 29... Kf8 {[%clk 0:00:21.6]} 30. Qb4+ {[%clk 0:02:29.6]}
30... Kf7 {[%clk 0:00:20.3]} 31. Qb3+ {[%clk 0:02:28.8]} 31... Kf8 {[%clk
0:00:20]} 32. Qa3+ {[%clk 0:02:27.8]} 32... Kf7 {[%clk 0:00:20.2]} 33. Qxa7
{[%clk 0:02:25.9]} 33... Re8 {[%clk 0:00:19.1]} 34. Rxe8 {[%clk 0:02:25.1]}
34... Kxe8 {[%clk 0:00:19.2]} 35. Qb8+ {[%clk 0:02:25.6]} 35... Kd7 {[%clk
0:00:19.5]} 36. Qf4 {[%clk 0:02:24.6]} 36... Qe7 {[%clk 0:00:16.9]} 37. Bf5+
{[%clk 0:02:24.6]} 37... Ke8 {[%clk 0:00:16.8]} 38. Qe3 {[%clk 0:02:24.6]} 38...
Qxe3 {[%clk 0:00:15.1]} 39. fxe3 {[%clk 0:02:25.5]} 39... Ke7 {[%clk 0:00:15.2]}
40. b3 {[%clk 0:02:24.4]} 40... Kf6 {[%clk 0:00:15.4]} 41. Bc2 {[%clk
0:02:24.5]} 41... Ke5 {[%clk 0:00:16]} 42. Kf2 {[%clk 0:02:24.7]} 42... b6
{[%clk 0:00:15.5]} 43. a4 {[%clk 0:02:24.7]} 43... g5 {[%clk 0:00:15.4]} 44. b4
{[%clk 0:02:25.2]} 44... Kd5 {[%clk 0:00:15]} 45. Bb3+ {[%clk 0:02:25.3]} 45...
Ke4 {[%clk 0:00:14.9]} 46. Bc4 {[%clk 0:02:25.5]} 46... Bxa4 {[%clk 0:00:14.7]}
47. Be2 {[%clk 0:02:24.3]} 47... Bb3 {[%clk 0:00:14.5]} 48. c4 {[%clk
0:02:22.7]} 48... Ba2 {[%clk 0:00:13.1]} 49. Bf3+ {[%clk 0:02:22.9]} 49... Kd3
{[%clk 0:00:11.8]} 50. c5 {[%clk 0:02:23.8]} 50... bxc5 {[%clk 0:00:11.7]} 51.
bxc5 {[%clk 0:02:24.7]} 51... Be6 {[%clk 0:00:11.3]} 52. c6 {[%clk 0:02:24]}
52... Kc4 {[%clk 0:00:08.6]} 53. c7 {[%clk 0:02:24.3]} 53... Bc8 {[%clk
0:00:08.8]} 54. Ke2 {[%clk 0:02:10.7]} 54... Kc5 {[%clk 0:00:08.8]} 55. Kd3
{[%clk 0:02:10.9]} 55... Kd6 {[%clk 0:00:08.6]} 56. Kd4 {[%clk 0:02:10.8]} 56...
Kxc7 {[%clk 0:00:08.8]} 57. Ke5 {[%clk 0:02:11.4]} 57... Kd8 {[%clk 0:00:07.2]}
58. Kf6 {[%clk 0:02:11]} 58... Kc7 {[%clk 0:00:06.6]} 59. g4 {[%clk 0:02:10.7]}
59... Kd6 {[%clk 0:00:06.2]} 60. Kg6 {[%clk 0:02:11.1]} 60... Ke5 {[%clk
0:00:06.3]} 61. Kxh6 {[%clk 0:02:11.6]} 61... Kf6 {[%clk 0:00:07]} 62. Kh5
{[%clk 0:02:04]} 62... Be6 {[%clk 0:00:06.7]} 63. Be4 {[%clk 0:02:00.3]} 63...
Bf7+ {[%clk 0:00:06.3]} 64. Kh6 {[%clk 0:02:00]} 64... Be6 {[%clk 0:00:07]} 65.
Bf5 {[%clk 0:01:59.3]} 65... Bf7 {[%clk 0:00:05]} 66. g3 {[%clk 0:01:49.5]}
66... Bc4 {[%clk 0:00:05.3]} 67. Kh7 {[%clk 0:01:49.2]} 67... Bb3 {[%clk
0:00:04.9]} 68. Kh8 {[%clk 0:01:49]} 68... Bc4 {[%clk 0:00:05]} 69. Kh7 {[%clk
0:01:46.3]} 69... Bb3 {[%clk 0:00:05.7]} 70. Kh6 {[%clk 0:01:46.7]} 70... Bc4
{[%clk 0:00:06.1]} 71. e4 {[%clk 0:01:47.1]} 71... Bb3 {[%clk 0:00:06.3]} 72.
e5+ {[%clk 0:01:47.5]} 72... Kxe5 {[%clk 0:00:06.3]} 73. Kxg5 {[%clk 0:01:48.4]}
73... Bc4 {[%clk 0:00:05.1]} 74. Bb1 {[%clk 0:01:47.6]} 74... Ke6 {[%clk
0:00:03.5]} 75. Kh6 {[%clk 0:01:47.4]} 75... Kf7 {[%clk 0:00:03.7]} 76. g5
{[%clk 0:01:47.6]} 76... Kg8 {[%clk 0:00:02.9]} 77. Bh7+ {[%clk 0:01:48.2]}
77... Kf8 {[%clk 0:00:01.8]} 78. g6 {[%clk 0:01:49.1]} 78... Bd5 {[%clk
0:00:01.4]} 79. g7+ {[%clk 0:01:49.5]} 79... Ke7 {[%clk 0:00:02]} 80. g8=Q
{[%clk 0:01:49.9]} 80... Bxg8 {[%clk 0:00:02]} 81. Bxg8 {[%clk 0:01:50.8]} 81...
Kf6 {[%clk 0:00:02.1]} 82. Bh7 {[%clk 0:01:51.2]} 82... Kf7 {[%clk 0:00:02.1]}
83. g4 {[%clk 0:01:51.5]} 83... Kf6 {[%clk 0:00:02.5]} 84. g5+ {[%clk 0:01:52]}
84... Ke5 {[%clk 0:00:02.9]} 85. g6 {[%clk 0:01:52.5]} 85... Kf6 {[%clk
0:00:03.6]} 86. g7 {[%clk 0:01:53]} 86... Ke5 {[%clk 0:00:02.9]} 87. g8=Q {[%clk
0:01:53.1]} 1-0

[Event "Early-Titled-Tuesday-Blitz-January-23-2024"]
[Site "Chess.com"]
[Date "2024.01.23"]
[Round "4"]
[White "BilodeauA"]
[Black "Hikaru"]
[Result "0-1"]
[WhiteElo "2927"]
[BlackElo "3308"]
[TimeControl "180+1"]
[EndTime "8:39:08 PST"]
[Termination "Hikaru won by resignation"]

1. e4 {[%clk 0:03:00.9]} 1... c5 {[%clk 0:02:57.6]} 2. Nf3 {[%clk 0:03:00.9]}
2... e6 {[%clk 0:02:58.1]} 3. Nc3 {[%clk 0:02:59.3]} 3... a6 {[%clk 0:02:58.1]}
4. d4 {[%clk 0:02:59]} 4... cxd4 {[%clk 0:02:59]} 5. Nxd4 {[%clk 0:02:59.7]}
5... Qc7 {[%clk 0:02:59.3]} 6. Be2 {[%clk 0:02:55.3]} 6... Nf6 {[%clk
0:02:59.2]} 7. O-O {[%clk 0:02:54.7]} 7... Bb4 {[%clk 0:02:53.2]} 8. Bg5 {[%clk
0:02:54.8]} 8... Bxc3 {[%clk 0:02:44.5]} 9. Bxf6 {[%clk 0:02:54.2]} 9... gxf6
{[%clk 0:02:41.6]} 10. bxc3 {[%clk 0:02:54.8]} 10... Qxc3 {[%clk 0:02:42.4]} 11.
Rb1 {[%clk 0:02:55.1]} 11... Nc6 {[%clk 0:02:42]} 12. Nxc6 {[%clk 0:02:42.7]}
12... bxc6 {[%clk 0:02:36.8]} 13. Rb3 {[%clk 0:02:38.5]} 13... Qc5 {[%clk
0:02:36.1]} 14. Kh1 {[%clk 0:02:30.3]} 14... a5 {[%clk 0:02:34.5]} 15. f4 {[%clk
0:02:15.5]} 15... Ke7 {[%clk 0:02:32.7]} 16. e5 {[%clk 0:02:10.2]} 16... fxe5
{[%clk 0:02:22.5]} 17. fxe5 {[%clk 0:02:07.2]} 17... Qxe5 {[%clk 0:02:22.6]} 18.
Qd2 {[%clk 0:01:38.9]} 18... Rg8 {[%clk 0:02:00.3]} 19. Rbf3 {[%clk 0:01:28.2]}
19... Rg7 {[%clk 0:01:37]} 20. Bd3 {[%clk 0:01:21.2]} 20... Ba6 {[%clk
0:01:31.5]} 21. Bxa6 {[%clk 0:00:59.9]} 21... Rxa6 {[%clk 0:01:30.5]} 22. Qf2
{[%clk 0:01:00.3]} 22... Kd8 {[%clk 0:00:52.3]} 23. Rxf7 {[%clk 0:00:57.6]}
23... Kc7 {[%clk 0:00:50.7]} 24. Rd1 {[%clk 0:00:40.4]} 24... Kc8 {[%clk
0:00:34.7]} 25. h3 {[%clk 0:00:28.7]} 25... d5 {[%clk 0:00:23]} 26. Rb1 {[%clk
0:00:22.5]} 26... d4 {[%clk 0:00:16.1]} 27. Rbb7 {[%clk 0:00:17.8]} 27... Rxf7
{[%clk 0:00:16.2]} 28. Rxf7 {[%clk 0:00:12.4]} 28... Rb6 {[%clk 0:00:16.4]} 29.
Rf8+ {[%clk 0:00:09.8]} 29... Kb7 {[%clk 0:00:17]} 30. Qf7+ {[%clk 0:00:09.7]}
30... Ka6 {[%clk 0:00:17.7]} 31. Qf1+ {[%clk 0:00:10.4]} 31... Ka7 {[%clk
0:00:17]} 32. a4 {[%clk 0:00:09.5]} 32... Rb7 {[%clk 0:00:16.1]} 33. Rd8 {[%clk
0:00:07.7]} 33... Qc5 {[%clk 0:00:16]} 34. Qe1 {[%clk 0:00:06]} 34... e5 {[%clk
0:00:16.5]} 35. Re8 {[%clk 0:00:06]} 35... Qb6 {[%clk 0:00:11.3]} 36. Rxe5
{[%clk 0:00:06]} 36... Qb1 {[%clk 0:00:11.6]} 37. Rxa5+ {[%clk 0:00:06.4]} 37...
Kb8 {[%clk 0:00:12.3]} 38. Qxb1 {[%clk 0:00:07]} 38... Rxb1+ {[%clk 0:00:12.6]}
39. Kh2 {[%clk 0:00:07.9]} 39... Kc7 {[%clk 0:00:13.2]} 40. Rc5 {[%clk
0:00:07.5]} 40... Kd6 {[%clk 0:00:13.5]} 41. Rh5 {[%clk 0:00:07]} 41... Rb2
{[%clk 0:00:12.7]} 42. Rxh7 {[%clk 0:00:04.5]} 42... Rxc2 {[%clk 0:00:12.5]} 43.
Kg3 {[%clk 0:00:04.9]} 43... c5 {[%clk 0:00:12.7]} 44. Kf3 {[%clk 0:00:05.3]}
44... d3 {[%clk 0:00:13.3]} 45. Ke3 {[%clk 0:00:05.6]} 45... c4 {[%clk
0:00:13.9]} 46. Rh6+ {[%clk 0:00:02.9]} 46... Kc5 {[%clk 0:00:14]} 47. a5 {[%clk
0:00:02.3]} 47... Re2+ {[%clk 0:00:14.1]} 48. Kf3 {[%clk 0:00:02.4]} 48... Re8
{[%clk 0:00:15]} 49. Rh5+ {[%clk 0:00:01.7]} 49... Kd4 {[%clk 0:00:15.6]} 50.
Rh7 {[%clk 0:00:02]} 50... c3 {[%clk 0:00:15.5]} 51. Rd7+ {[%clk 0:00:02.6]}
51... Kc4 {[%clk 0:00:15.9]} 52. Rc7+ {[%clk 0:00:02.8]} 52... Kb3 {[%clk
0:00:16.3]} 53. a6 {[%clk 0:00:03.3]} 53... d2 {[%clk 0:00:16.3]} 54. Rd7 {[%clk
0:00:02.6]} 54... c2 {[%clk 0:00:16.6]} 0-1

[Event "Early-Titled-Tuesday-Blitz-January-23-2024"]
[Site "Chess.com"]
[Date "2024.01.23"]
[Round "4"]
[White "Skatchkov_V"]
[Black "Boxerandchessplayer"]
[Result "1-0"]
[WhiteElo "2628"]
[BlackElo "2256"]
[TimeControl "180+1"]
[EndTime "8:39:09 PST"]
[Termination "Skatchkov_V won on time"]

1. d4 {[%clk 0:03:00.9]} 1... Nf6 {[%clk 0:02:59.9]} 2. c3 {[%clk 0:02:57.9]}
2... d5 {[%clk 0:02:59.3]} 3. Nf3 {[%clk 0:02:58.1]} 3... e6 {[%clk 0:02:56.1]}
4. Bf4 {[%clk 0:02:57.8]} 4... Bd6 {[%clk 0:02:55.7]} 5. Bg3 {[%clk 0:02:56.6]}
5... O-O {[%clk 0:02:55.6]} 6. e3 {[%clk 0:02:57]} 6... c5 {[%clk 0:02:55.9]} 7.
Nbd2 {[%clk 0:02:56.5]} 7... Qc7 {[%clk 0:02:56.2]} 8. Bd3 {[%clk 0:02:53.9]}
8... Nbd7 {[%clk 0:02:56.6]} 9. Qe2 {[%clk 0:02:53.5]} 9... e5 {[%clk 0:02:56]}
10. dxe5 {[%clk 0:02:50.9]} 10... Nxe5 {[%clk 0:02:56.9]} 11. Nxe5 {[%clk
0:02:51.1]} 11... Bxe5 {[%clk 0:02:57.8]} 12. Rd1 {[%clk 0:02:50.1]} 12... b6
{[%clk 0:02:48.4]} 13. Nf3 {[%clk 0:02:27.4]} 13... Bxg3 {[%clk 0:02:46.4]} 14.
hxg3 {[%clk 0:02:25.6]} 14... Bg4 {[%clk 0:02:34.3]} 15. Rh4 {[%clk 0:01:56.9]}
15... h5 {[%clk 0:02:14.1]} 16. Qc2 {[%clk 0:01:47.9]} 16... Rfe8 {[%clk
0:02:05.3]} 17. Kf1 {[%clk 0:01:47.1]} 17... Rad8 {[%clk 0:01:30.1]} 18. Bf5
{[%clk 0:01:44.1]} 18... g6 {[%clk 0:01:16.5]} 19. Bxg4 {[%clk 0:01:33.7]} 19...
Nxg4 {[%clk 0:01:17.4]} 20. Kg1 {[%clk 0:01:32]} 20... Qe7 {[%clk 0:01:02]} 21.
Nh2 {[%clk 0:01:30.4]} 21... Ne5 {[%clk 0:00:48.6]} 22. Rf4 {[%clk 0:01:24]}
22... Rd7 {[%clk 0:00:28.5]} 23. Nf3 {[%clk 0:01:19.3]} 23... Red8 {[%clk
0:00:27.5]} 24. Nxe5 {[%clk 0:00:54.9]} 24... Qxe5 {[%clk 0:00:28.4]} 25. Qb3
{[%clk 0:00:47]} 25... g5 {[%clk 0:00:15.9]} 26. Rf3 {[%clk 0:00:40.4]} 26...
Kg7 {[%clk 0:00:14.9]} 27. Qc2 {[%clk 0:00:39]} 27... Qe4 {[%clk 0:00:12.9]} 28.
Qe2 {[%clk 0:00:30.4]} 28... d4 {[%clk 0:00:06.9]} 29. Qc4 {[%clk 0:00:30.9]}
29... Qe6 {[%clk 0:00:05.3]} 30. Qxe6 {[%clk 0:00:25.4]} 30... fxe6 {[%clk
0:00:06.2]} 31. exd4 {[%clk 0:00:25]} 31... cxd4 {[%clk 0:00:07.1]} 32. Rfd3
{[%clk 0:00:24.1]} 32... e5 {[%clk 0:00:07]} 33. cxd4 {[%clk 0:00:23.4]} 33...
exd4 {[%clk 0:00:07.9]} 34. f3 {[%clk 0:00:22.7]} 34... Kf6 {[%clk 0:00:08.1]}
35. Kf2 {[%clk 0:00:23]} 35... Ke5 {[%clk 0:00:07.7]} 36. Re1+ {[%clk
0:00:23.4]} 36... Kf5 {[%clk 0:00:07.8]} 37. Re4 {[%clk 0:00:23.8]} 37... Rc8
{[%clk 0:00:06.6]} 38. Rd2 {[%clk 0:00:24.3]} 38... d3 {[%clk 0:00:06.1]} 39.
Ke3 {[%clk 0:00:19.3]} 39... Rc2 {[%clk 0:00:02.7]} 40. Rxc2 {[%clk 0:00:19.5]}
40... dxc2 {[%clk 0:00:02.8]} 41. Rc4 {[%clk 0:00:20.4]} 41... Re7+ {[%clk
0:00:02.5]} 42. Kf2 {[%clk 0:00:19.3]} 42... Rd7 {[%clk 0:00:01.4]} 43. Rxc2
{[%clk 0:00:19.8]} 43... g4 {[%clk 0:00:01.7]} 44. Re2 {[%clk 0:00:18.9]} 44...
gxf3 {[%clk 0:00:01.6]} 45. gxf3 {[%clk 0:00:19.8]} 45... Rd3 {[%clk 0:00:01.7]}
46. Re3 {[%clk 0:00:19.5]} 46... Rd2+ {[%clk 0:00:01.8]} 47. Re2 {[%clk
0:00:20.4]} 47... Rd3 {[%clk 0:00:02.3]} 48. Rc2 {[%clk 0:00:21.2]} 48... Rd7
{[%clk 0:00:01.7]} 49. a3 {[%clk 0:00:19.7]} 49... h4 {[%clk 0:00:01.1]} 50.
gxh4 {[%clk 0:00:19.4]} 50... Rh7 {[%clk 0:00:01.1]} 51. Rc4 {[%clk 0:00:19.7]}
1-0

[Event "Early-Titled-Tuesday-Blitz-January-23-2024"]
[Site "Chess.com"]
[Date "2024.01.23"]
[Round "4"]
[White "itsdsyr"]
[Black "vesalhamedinia"]
[Result "0-1"]
[WhiteElo "2245"]
[BlackElo "2508"]
[TimeControl "180+1"]
[EndTime "8:39:09 PST"]
[Termination "vesalhamedinia won by resignation"]

1. d4 {[%clk 0:02:59.7]} 1... d5 {[%clk 0:03:00.1]} 2. c4 {[%clk 0:02:59.4]}
2... e6 {[%clk 0:03:00.6]} 3. Nf3 {[%clk 0:02:59.4]} 3... Nf6 {[%clk 0:03:00.8]}
4. Nc3 {[%clk 0:02:59.3]} 4... Be7 {[%clk 0:03:00.7]} 5. Bf4 {[%clk 0:02:58.8]}
5... O-O {[%clk 0:03:00.6]} 6. e3 {[%clk 0:02:58.9]} 6... a5 {[%clk 0:03:01.1]}
7. Bd3 {[%clk 0:02:50.7]} 7... c6 {[%clk 0:03:00.1]} 8. cxd5 {[%clk 0:02:34.1]}
8... exd5 {[%clk 0:02:59.1]} 9. O-O {[%clk 0:02:34.2]} 9... Bg4 {[%clk
0:02:58.8]} 10. h3 {[%clk 0:02:31.5]} 10... Bh5 {[%clk 0:02:58.9]} 11. Be2
{[%clk 0:02:28.9]} 11... Na6 {[%clk 0:02:58.2]} 12. a3 {[%clk 0:02:28.1]} 12...
Nc7 {[%clk 0:02:57.9]} 13. Ne5 {[%clk 0:02:18.1]} 13... Bxe2 {[%clk 0:02:57.3]}
14. Qxe2 {[%clk 0:02:19]} 14... Ne6 {[%clk 0:02:58]} 15. Bg3 {[%clk 0:02:18.5]}
15... Re8 {[%clk 0:02:58.4]} 16. f4 {[%clk 0:02:17.7]} 16... Bd6 {[%clk
0:02:53.8]} 17. Rae1 {[%clk 0:02:12.7]} 17... Nf8 {[%clk 0:02:44.6]} 18. Qd3
{[%clk 0:02:05.3]} 18... Qb6 {[%clk 0:02:41.7]} 19. Re2 {[%clk 0:01:55.4]} 19...
a4 {[%clk 0:02:41.7]} 20. Kh2 {[%clk 0:01:49.1]} 20... Qb3 {[%clk 0:02:37]} 21.
Qf5 {[%clk 0:01:30.9]} 21... Ng6 {[%clk 0:02:30.5]} 22. Qc2 {[%clk 0:01:04.1]}
22... Nh5 {[%clk 0:01:53.3]} 23. Be1 {[%clk 0:00:48.7]} 23... Qxc2 {[%clk
0:01:48.7]} 24. Rxc2 {[%clk 0:00:48.5]} 24... Nf6 {[%clk 0:01:26.6]} 25. g4
{[%clk 0:00:47.1]} 25... Ra6 {[%clk 0:01:18.3]} 26. Bg3 {[%clk 0:00:45.6]} 26...
Ne4 {[%clk 0:01:12.1]} 27. Nxe4 {[%clk 0:00:43.3]} 27... dxe4 {[%clk 0:01:13]}
28. Nc4 {[%clk 0:00:40.4]} 28... Bb8 {[%clk 0:01:09.9]} 29. f5 {[%clk 0:00:40]}
29... Bxg3+ {[%clk 0:01:08.6]} 30. Kxg3 {[%clk 0:00:40.9]} 30... Ne7 {[%clk
0:01:08.5]} 31. Nd6 {[%clk 0:00:40.3]} 31... Rb8 {[%clk 0:01:08.4]} 32. Nxe4
{[%clk 0:00:39.9]} 32... Nd5 {[%clk 0:01:09]} 33. Nc5 {[%clk 0:00:37.9]} 33...
Raa8 {[%clk 0:00:49.1]} 34. Kf3 {[%clk 0:00:32.3]} 34... Re8 {[%clk 0:00:47.7]}
35. e4 {[%clk 0:00:27.8]} 35... Nf6 {[%clk 0:00:46.6]} 36. Re1 {[%clk
0:00:17.7]} 36... b6 {[%clk 0:00:44.4]} 37. Nd3 {[%clk 0:00:16.6]} 37... Rad8
{[%clk 0:00:44]} 38. e5 {[%clk 0:00:13.5]} 38... Rxd4 {[%clk 0:00:41.6]} 39.
exf6 {[%clk 0:00:12.6]} 39... Rxd3+ {[%clk 0:00:41.5]} 40. Kf2 {[%clk
0:00:13.2]} 40... Rxe1 {[%clk 0:00:30.7]} 41. Kxe1 {[%clk 0:00:14.1]} 41... c5
{[%clk 0:00:22.9]} 42. fxg7 {[%clk 0:00:13.6]} 42... Kxg7 {[%clk 0:00:23.4]} 43.
Rc3 {[%clk 0:00:14.1]} 43... Rxc3 {[%clk 0:00:19.9]} 44. bxc3 {[%clk 0:00:14.2]}
44... b5 {[%clk 0:00:20.3]} 45. Kd2 {[%clk 0:00:14.4]} 45... Kf6 {[%clk
0:00:20.5]} 46. Kd3 {[%clk 0:00:14.5]} 46... Ke5 {[%clk 0:00:20.8]} 47. h4
{[%clk 0:00:15]} 47... Kf4 {[%clk 0:00:20.4]} 48. f6 {[%clk 0:00:14.8]} 48...
Kxg4 {[%clk 0:00:20.3]} 49. Ke4 {[%clk 0:00:15.2]} 49... Kxh4 {[%clk 0:00:20.3]}
50. Kd5 {[%clk 0:00:16.1]} 50... b4 {[%clk 0:00:20.1]} 51. cxb4 {[%clk 0:00:16]}
51... cxb4 {[%clk 0:00:20.5]} 52. axb4 {[%clk 0:00:16.2]} 52... a3 {[%clk
0:00:20.9]} 53. b5 {[%clk 0:00:17.1]} 53... a2 {[%clk 0:00:21.4]} 54. b6 {[%clk
0:00:18]} 54... a1=Q {[%clk 0:00:21.8]} 55. b7 {[%clk 0:00:18.9]} 55... Qh1+
{[%clk 0:00:20.3]} 0-1

[Event "Early-Titled-Tuesday-Blitz-January-23-2024"]
[Site "Chess.com"]
[Date "2024.01.23"]
[Round "4"]
[White "Byniolus"]
[Black "amintabatabaei"]
[Result "1-0"]
[WhiteElo "2863"]
[BlackElo "3018"]
[TimeControl "180+1"]
[EndTime "8:39:11 PST"]
[Termination "Byniolus won by resignation"]

1. d4 {[%clk 0:03:00.9]} 1... Nf6 {[%clk 0:02:59.2]} 2. Nf3 {[%clk 0:03:01.1]}
2... g6 {[%clk 0:02:59.1]} 3. Bf4 {[%clk 0:03:01.4]} 3... Bg7 {[%clk 0:02:59]}
4. e3 {[%clk 0:03:02.3]} 4... d6 {[%clk 0:02:59.4]} 5. h3 {[%clk 0:03:02.4]}
5... O-O {[%clk 0:02:59.2]} 6. Be2 {[%clk 0:03:03]} 6... c5 {[%clk 0:02:59.5]}
7. c3 {[%clk 0:03:03.3]} 7... Qb6 {[%clk 0:02:59.7]} 8. Qb3 {[%clk 0:03:03.3]}
8... Be6 {[%clk 0:02:59.8]} 9. Qxb6 {[%clk 0:03:03.7]} 9... axb6 {[%clk
0:03:00.7]} 10. a3 {[%clk 0:03:04.5]} 10... Bd5 {[%clk 0:03:00.5]} 11. Nbd2
{[%clk 0:03:05.1]} 11... Nbd7 {[%clk 0:02:59.7]} 12. O-O {[%clk 0:03:05]} 12...
Bc6 {[%clk 0:03:00.2]} 13. Rfd1 {[%clk 0:02:54.6]} 13... b5 {[%clk 0:03:00.4]}
14. Bg3 {[%clk 0:02:53.8]} 14... Rfc8 {[%clk 0:02:21.6]} 15. Bd3 {[%clk
0:02:52.5]} 15... Rd8 {[%clk 0:02:13.7]} 16. e4 {[%clk 0:02:46.8]} 16... e6
{[%clk 0:02:14.1]} 17. Bxd6 {[%clk 0:02:42.8]} 17... c4 {[%clk 0:02:12.5]} 18.
Bc2 {[%clk 0:02:39.4]} 18... Bf8 {[%clk 0:02:08.1]} 19. Bxf8 {[%clk 0:02:35.8]}
19... Kxf8 {[%clk 0:02:09]} 20. e5 {[%clk 0:02:31.5]} 20... Nd5 {[%clk
0:02:07.6]} 21. Ng5 {[%clk 0:02:22.5]} 21... Kg7 {[%clk 0:02:05.7]} 22. Nge4
{[%clk 0:02:21.5]} 22... N7b6 {[%clk 0:02:06.2]} 23. Nd6 {[%clk 0:02:16.4]}
23... Nc8 {[%clk 0:01:55.8]} 24. Nxc8 {[%clk 0:02:10.7]} 24... Raxc8 {[%clk
0:01:55]} 25. g3 {[%clk 0:02:09.7]} 25... g5 {[%clk 0:01:52.9]} 26. Ne4 {[%clk
0:02:06.5]} 26... h6 {[%clk 0:01:53.5]} 27. Re1 {[%clk 0:01:59.3]} 27... Ra8
{[%clk 0:01:50.3]} 28. Kh2 {[%clk 0:01:57.3]} 28... Ne7 {[%clk 0:01:50]} 29. Nd6
{[%clk 0:01:51.4]} 29... h5 {[%clk 0:01:47.9]} 30. Be4 {[%clk 0:01:45.2]} 30...
Ra7 {[%clk 0:01:47.2]} 31. f4 {[%clk 0:01:41.2]} 31... gxf4 {[%clk 0:01:45.1]}
32. gxf4 {[%clk 0:01:42.1]} 32... Rg8 {[%clk 0:01:34]} 33. Rg1+ {[%clk
0:01:32.4]} 33... Kf8 {[%clk 0:01:34.3]} 34. Rxg8+ {[%clk 0:01:33]} 34... Kxg8
{[%clk 0:01:34.9]} 35. Rg1+ {[%clk 0:01:32.4]} 35... Kf8 {[%clk 0:01:35.6]} 36.
Rg5 {[%clk 0:01:23.9]} 36... b4 {[%clk 0:01:36.1]} 37. cxb4 {[%clk 0:01:17.3]}
37... c3 {[%clk 0:01:37]} 38. bxc3 {[%clk 0:01:15.4]} 38... Rxa3 {[%clk
0:01:37.7]} 39. b5 {[%clk 0:00:51.4]} 39... Bxe4 {[%clk 0:01:22.3]} 40. Nxe4
{[%clk 0:00:52.3]} 40... Nd5 {[%clk 0:01:23.2]} 41. Rxh5 {[%clk 0:00:42.5]}
41... Kg7 {[%clk 0:01:22.7]} 42. Rg5+ {[%clk 0:00:40.6]} 42... Kf8 {[%clk
0:01:23.4]} 43. c4 {[%clk 0:00:29.5]} 43... Nxf4 {[%clk 0:01:22.5]} 44. Nf6
{[%clk 0:00:18.5]} 44... Rxh3+ {[%clk 0:01:22.7]} 45. Kg1 {[%clk 0:00:19.1]}
45... Ng6 {[%clk 0:01:23.6]} 46. c5 {[%clk 0:00:14.6]} 46... Rd3 {[%clk
0:01:19.7]} 47. Rg4 {[%clk 0:00:11.8]} 47... Ke7 {[%clk 0:01:18.7]} 48. b6
{[%clk 0:00:10]} 48... Rd2 {[%clk 0:01:16.5]} 49. Kf1 {[%clk 0:00:10]} 49... Ra2
{[%clk 0:01:11.3]} 50. Ke1 {[%clk 0:00:09.3]} 50... Rb2 {[%clk 0:01:09.8]} 51.
Kd1 {[%clk 0:00:09.5]} 51... Rh2 {[%clk 0:01:08.3]} 52. Kc1 {[%clk 0:00:09.3]}
52... Kd8 {[%clk 0:01:01.4]} 53. Ne4 {[%clk 0:00:07.6]} 53... Kd7 {[%clk
0:00:59.6]} 54. Nd6 {[%clk 0:00:07.4]} 54... Kc6 {[%clk 0:01:00.3]} 55. Nxf7
{[%clk 0:00:07.8]} 55... Ne7 {[%clk 0:01:00.3]} 56. Nd8+ {[%clk 0:00:04.8]}
56... Kd5 {[%clk 0:01:00.9]} 57. Nxb7 {[%clk 0:00:04.4]} 57... Nc6 {[%clk
0:01:01.2]} 58. Rg8 {[%clk 0:00:03.5]} 58... Nxd4 {[%clk 0:00:56.7]} 59. Rd8+
{[%clk 0:00:03.7]} 59... Kc4 {[%clk 0:00:56.8]} 60. Na5+ {[%clk 0:00:03.3]}
60... Kc3 {[%clk 0:00:56.7]} 61. Rxd4 {[%clk 0:00:03]} 61... Kxd4 {[%clk
0:00:56.3]} 62. b7 {[%clk 0:00:02.8]} 62... Kc3 {[%clk 0:00:56.1]} 63. Kd1
{[%clk 0:00:03.3]} 63... Kd3 {[%clk 0:00:51]} 64. Ke1 {[%clk 0:00:03.4]} 64...
Rh8 {[%clk 0:00:43.5]} 65. c6 {[%clk 0:00:03.5]} 65... Ke3 {[%clk 0:00:44.3]}
66. Nc4+ {[%clk 0:00:03.2]} 66... Kd3 {[%clk 0:00:44.8]} 67. c7 {[%clk
0:00:03.8]} 1-0